[Event "Titled Tuesday Blitz August 22 Early 2023"]
[White "Derichs, Roger"]
[Black "Iskusnyh, Sergei"]
[WhiteFideId "4630076"]
[BlackFideId "4120027"]
[WhiteElo "2461"]
[BlackElo "2623"]
[Result "0-1"]
[Round "3"]
[TimeControl "180+1"]
[Date "2023.08.22"]
[WhiteClock "0:00:13"]
[BlackClock "0:00:30"]
[Board "111"]

1. d4 {[%clk 0:03:00]}  d5 {[%clk 0:02:59]} 2. Nf3 {[%clk 0:02:57]}  Nf6 {[%clk 0:02:58]} 3. c3 {[%clk 0:02:56]}  c6 {[%clk 0:02:55]} 4. Qc2 {[%clk 0:02:45]}  g6 {[%clk 0:02:43]} 5. Bf4 {[%clk 0:02:35]}  Bg7 {[%clk 0:02:38]} 6. e3 {[%clk 0:02:30]}  Bf5 {[%clk 0:02:36]} 7. Qb3 {[%clk 0:02:26]}  Qc8 {[%clk 0:02:29]} 8. h3 {[%clk 0:02:17]}  O-O {[%clk 0:02:28]} 9. Nbd2 {[%clk 0:02:16]}  c5 {[%clk 0:02:24]} 10. g4 {[%clk 0:02:11]}  Be6 {[%clk 0:02:15]} 11. Qa3 {[%clk 0:02:03]}  cxd4 {[%clk 0:02:07]} 12. cxd4 {[%clk 0:02:00]}  Nc6 {[%clk 0:02:06]} 13. Be2 {[%clk 0:01:46]}  Ne4 {[%clk 0:01:58]} 14. Rc1 {[%clk 0:01:40]}  Qd7 {[%clk 0:01:52]} 15. O-O {[%clk 0:01:23]}  Bxg4 {[%clk 0:01:42]} 16. hxg4 {[%clk 0:01:09]}  Qxg4+ {[%clk 0:01:38]} 17. Bg3 {[%clk 0:00:47]}  Nxd2 {[%clk 0:01:25]} 18. Nxd2 {[%clk 0:00:41]}  Qxe2 {[%clk 0:01:24]} 19. Rc2 {[%clk 0:00:37]}  h5 {[%clk 0:01:03]} 20. Rfc1 {[%clk 0:00:36]}  Qg4 {[%clk 0:01:02]} 21. Kh1 {[%clk 0:00:32]}  e5 {[%clk 0:00:56]} 22. dxe5 {[%clk 0:00:21]}  Nxe5 {[%clk 0:00:50]} 23. Nf1 {[%clk 0:00:22]}  Qe4+ {[%clk 0:00:44]} 24. Kh2 {[%clk 0:00:18]}  Nf3+ {[%clk 0:00:43]} 25. Kh3 {[%clk 0:00:18]}  Qg4+ {[%clk 0:00:30]} 26. Kg2 {[%clk 0:00:13]}  h4 {[%clk 0:00:30]} 0-1


[Site "https://www.chess.com"]

[Event "Titled Tuesday Blitz August 22 Early 2023"]
[White "Aaditya Dhingra"]
[Black "NLLO777"]
[WhiteFideId "25678191"]
[WhiteElo "2623"]
[BlackElo "2461"]
[Result "1-0"]
[Round "3"]
[TimeControl "180+1"]
[Date "2023.08.22"]
[WhiteClock "0:00:06"]
[BlackClock "0:00:09"]
[Board "112"]

1. d4 {[%clk 0:01:19]}  Nf6 {[%clk 0:02:58]} 2. c4 {[%clk 0:01:19]}  c5 {[%clk 0:02:57]} 3. d5 {[%clk 0:01:18]}  b5 {[%clk 0:02:57]} 4. Qc2 {[%clk 0:01:16]}  d6 {[%clk 0:02:58]} 5. e4 {[%clk 0:01:15]}  g6 {[%clk 0:02:58]} 6. Nc3 {[%clk 0:01:11]}  b4 {[%clk 0:02:56]} 7. Nd1 {[%clk 0:01:10]}  Bg7 {[%clk 0:02:56]} 8. f4 {[%clk 0:01:09]}  O-O {[%clk 0:02:55]} 9. Nf3 {[%clk 0:01:09]}  e6 {[%clk 0:02:56]} 10. Be2 {[%clk 0:01:08]}  exd5 {[%clk 0:02:54]} 11. cxd5 {[%clk 0:01:07]}  Re8 {[%clk 0:02:55]} 12. Nf2 {[%clk 0:01:06]}  Qe7 {[%clk 0:02:31]} 13. O-O {[%clk 0:00:50]}  Nxe4 {[%clk 0:02:28]} 14. Bb5 {[%clk 0:00:48]}  Bf5 {[%clk 0:02:18]} 15. Bxe8 {[%clk 0:00:38]}  Nxf2 {[%clk 0:01:10]} 16. Bxf7+ {[%clk 0:00:32]}  Qxf7 {[%clk 0:01:11]} 17. Qxf2 {[%clk 0:00:31]}  Qxd5 {[%clk 0:01:11]} 18. Be3 {[%clk 0:00:29]}  Nc6 {[%clk 0:01:08]} 19. Rad1 {[%clk 0:00:27]}  Qe6 {[%clk 0:00:51]} 20. Rfe1 {[%clk 0:00:26]}  Qf6 {[%clk 0:00:43]} 21. b3 {[%clk 0:00:23]}  Rd8 {[%clk 0:00:43]} 22. h3 {[%clk 0:00:21]}  h6 {[%clk 0:00:43]} 23. Qh4 {[%clk 0:00:20]}  Qc3 {[%clk 0:00:38]} 24. Bf2 {[%clk 0:00:17]}  Kh7 {[%clk 0:00:35]} 25. Ng5+ {[%clk 0:00:16]}  Kg8 {[%clk 0:00:34]} 26. Ne6 {[%clk 0:00:16]}  Rd7 {[%clk 0:00:21]} 27. Nxg7 {[%clk 0:00:15]}  Kxg7 {[%clk 0:00:22]} 28. Qg3 {[%clk 0:00:14]}  Qxg3 {[%clk 0:00:19]} 29. Bxg3 {[%clk 0:00:14]}  Nd4 {[%clk 0:00:19]} 30. Bf2 {[%clk 0:00:14]}  Ne6 {[%clk 0:00:13]} 31. g4 {[%clk 0:00:14]}  Bc2 {[%clk 0:00:10]} 32. Rd2 {[%clk 0:00:14]}  Nxf4 {[%clk 0:00:07]} 33. Rxc2 {[%clk 0:00:14]}  Nxh3+ {[%clk 0:00:07]} 34. Kg2 {[%clk 0:00:14]}  Nf4+ {[%clk 0:00:07]} 35. Kh2 {[%clk 0:00:14]}  g5 {[%clk 0:00:07]} 36. Bg3 {[%clk 0:00:13]}  Ng6 {[%clk 0:00:06]} 37. Rd2 {[%clk 0:00:12]}  d5 {[%clk 0:00:06]} 38. Red1 {[%clk 0:00:12]}  d4 {[%clk 0:00:07]} 39. Rc1 {[%clk 0:00:12]}  Rd5 {[%clk 0:00:06]} 40. Rdc2 {[%clk 0:00:11]}  d3 {[%clk 0:00:07]} 41. Rd2 {[%clk 0:00:11]}  Kf6 {[%clk 0:00:06]} 42. Rcd1 {[%clk 0:00:11]}  Nf4 {[%clk 0:00:05]} 43. Bxf4 {[%clk 0:00:09]}  gxf4 {[%clk 0:00:06]} 44. Rxd3 {[%clk 0:00:09]}  Re5 {[%clk 0:00:07]} 45. Kg2 {[%clk 0:00:09]}  Re2+ {[%clk 0:00:06]} 46. Kf3 {[%clk 0:00:09]}  Rxa2 {[%clk 0:00:07]} 47. Rd6+ {[%clk 0:00:07]}  Ke7 {[%clk 0:00:08]} 48. Rd7+ {[%clk 0:00:07]}  Ke6 {[%clk 0:00:08]} 49. R1d6+ {[%clk 0:00:06]}  Ke5 {[%clk 0:00:09]} 50. Rd5+ {[%clk 0:00:06]}  Ke6 {[%clk 0:00:09]} 51. Kxf4 {[%clk 0:00:07]}  Rb2 {[%clk 0:00:10]} 52. R7d6+ {[%clk 0:00:07]}  Ke7 {[%clk 0:00:10]} 53. Rxh6 {[%clk 0:00:07]}  Rxb3 {[%clk 0:00:10]} 54. Re5+ {[%clk 0:00:07]}  Kd7 {[%clk 0:00:11]} 55. Rxc5 {[%clk 0:00:07]}  Rh3 {[%clk 0:00:09]} 56. Rxh3 {[%clk 0:00:06]} 1-0


[Site "https://www.chess.com"]

[Event "Titled Tuesday Blitz August 22 Early 2023"]
[White "Bodnaruk, Anastasia"]
[Black "Swicarz, Maciej"]
[WhiteFideId "4181751"]
[BlackFideId "1113585"]
[WhiteElo "2620"]
[BlackElo "2461"]
[Result "1-0"]
[Round "3"]
[TimeControl "180+1"]
[Date "2023.08.22"]
[WhiteClock "0:00:17"]
[BlackClock "0:00:00"]
[Board "113"]

1. e4 {[%clk 0:03:00]}  c5 {[%clk 0:02:59]} 2. Nc3 {[%clk 0:03:00]}  d6 {[%clk 0:02:58]} 3. Nge2 {[%clk 0:02:56]}  Nf6 {[%clk 0:02:56]} 4. d4 {[%clk 0:02:56]}  cxd4 {[%clk 0:02:55]} 5. Nxd4 {[%clk 0:02:56]}  a6 {[%clk 0:02:56]} 6. h3 {[%clk 0:02:56]}  e5 {[%clk 0:02:55]} 7. Nde2 {[%clk 0:02:56]}  h5 {[%clk 0:02:55]} 8. g3 {[%clk 0:02:53]}  Be7 {[%clk 0:02:52]} 9. Bg2 {[%clk 0:02:54]}  Be6 {[%clk 0:02:51]} 10. O-O {[%clk 0:02:50]}  Nbd7 {[%clk 0:02:49]} 11. a4 {[%clk 0:02:47]}  Rc8 {[%clk 0:02:49]} 12. Be3 {[%clk 0:02:32]}  Nb6 {[%clk 0:02:41]} 13. b3 {[%clk 0:02:30]}  Qc7 {[%clk 0:02:37]} 14. f4 {[%clk 0:02:18]}  exf4 {[%clk 0:02:29]} 15. gxf4 {[%clk 0:02:17]}  a5 {[%clk 0:01:58]} 16. Nb5 {[%clk 0:02:10]}  Qd8 {[%clk 0:01:35]} 17. f5 {[%clk 0:02:07]}  Bd7 {[%clk 0:01:28]} 18. Nxd6+ {[%clk 0:02:06]}  Bxd6 {[%clk 0:01:28]} 19. Qxd6 {[%clk 0:02:06]}  Rc6 {[%clk 0:01:22]} 20. Qe5+ {[%clk 0:01:59]}  Kf8 {[%clk 0:01:22]} 21. Nd4 {[%clk 0:01:55]}  Rc8 {[%clk 0:01:13]} 22. Qd6+ {[%clk 0:01:48]}  Kg8 {[%clk 0:01:09]} 23. Ne6 {[%clk 0:01:48]}  fxe6 {[%clk 0:01:02]} 24. Bxb6 {[%clk 0:01:45]}  Qe8 {[%clk 0:00:59]} 25. c4 {[%clk 0:01:28]}  exf5 {[%clk 0:00:54]} 26. exf5 {[%clk 0:01:25]}  Bc6 {[%clk 0:00:54]} 27. Rae1 {[%clk 0:01:22]}  Qf7 {[%clk 0:00:49]} 28. Re7 {[%clk 0:01:22]}  Qf8 {[%clk 0:00:43]} 29. Qe6+ {[%clk 0:01:08]}  Kh7 {[%clk 0:00:43]} 30. Bd4 {[%clk 0:01:02]}  Bxg2 {[%clk 0:00:38]} 31. Kxg2 {[%clk 0:01:01]}  Rc6 {[%clk 0:00:37]} 32. Qe5 {[%clk 0:00:59]}  b6 {[%clk 0:00:23]} 33. Rf3 {[%clk 0:00:58]}  Rg8 {[%clk 0:00:17]} 34. Rg3 {[%clk 0:00:56]}  Qc8 {[%clk 0:00:09]} 35. Qf4 {[%clk 0:00:50]}  Qd8 {[%clk 0:00:07]} 36. Qe5 {[%clk 0:00:42]}  Rd6 {[%clk 0:00:06]} 37. Be3 {[%clk 0:00:35]}  Qb8 {[%clk 0:00:03]} 38. Re6 {[%clk 0:00:26]}  Rxe6 {[%clk 0:00:02]} 39. Qxb8 {[%clk 0:00:25]}  Rxb8 {[%clk 0:00:01]} 40. fxe6 {[%clk 0:00:26]}  Kg8 {[%clk 0:00:01]} 41. Bd4 {[%clk 0:00:25]}  Kf8 {[%clk 0:00:00]} 42. Be5 {[%clk 0:00:17]} 1-0


[Site "https://www.chess.com"]

[Event "Titled Tuesday Blitz August 22 Early 2023"]
[White "Sliwicki, Damian"]
[Black "Altman, Joshua"]
[WhiteFideId "1127128"]
[BlackFideId "426210"]
[WhiteElo "2456"]
[BlackElo "2618"]
[Result "1-0"]
[Round "3"]
[TimeControl "180+1"]
[Date "2023.08.22"]
[WhiteClock "0:00:21"]
[BlackClock "0:00:17"]
[Board "116"]

1. e4 {[%clk 0:02:59]}  e6 {[%clk 0:03:00]} 2. Qe2 {[%clk 0:02:56]}  Be7 {[%clk 0:02:58]} 3. d4 {[%clk 0:02:54]}  d5 {[%clk 0:02:58]} 4. Nc3 {[%clk 0:02:54]}  dxe4 {[%clk 0:02:56]} 5. Nxe4 {[%clk 0:02:48]}  Nf6 {[%clk 0:02:51]} 6. Nf3 {[%clk 0:02:43]}  Nbd7 {[%clk 0:02:48]} 7. Bd2 {[%clk 0:02:29]}  O-O {[%clk 0:02:45]} 8. O-O-O {[%clk 0:02:29]}  b6 {[%clk 0:02:45]} 9. Ne5 {[%clk 0:02:26]}  Bb7 {[%clk 0:02:43]} 10. Nxf6+ {[%clk 0:02:19]}  Bxf6 {[%clk 0:02:37]} 11. f4 {[%clk 0:02:12]}  c5 {[%clk 0:02:30]} 12. Bc3 {[%clk 0:01:36]}  Qc7 {[%clk 0:01:31]} 13. Nxd7 {[%clk 0:01:32]}  Qxd7 {[%clk 0:01:32]} 14. dxc5 {[%clk 0:01:32]}  Qc7 {[%clk 0:01:30]} 15. Bxf6 {[%clk 0:01:25]}  Qxf4+ {[%clk 0:01:29]} 16. Kb1 {[%clk 0:01:12]}  Qxf6 {[%clk 0:01:27]} 17. cxb6 {[%clk 0:01:12]}  axb6 {[%clk 0:01:28]} 18. Qe3 {[%clk 0:01:06]}  Bd5 {[%clk 0:01:03]} 19. c4 {[%clk 0:01:02]}  Bc6 {[%clk 0:00:59]} 20. Bd3 {[%clk 0:00:59]}  g6 {[%clk 0:00:55]} 21. Rhf1 {[%clk 0:00:59]}  Qe7 {[%clk 0:00:48]} 22. h4 {[%clk 0:00:57]}  Qxh4 {[%clk 0:00:32]} 23. Rh1 {[%clk 0:00:53]}  Qf6 {[%clk 0:00:32]} 24. Rdf1 {[%clk 0:00:41]}  Qg7 {[%clk 0:00:31]} 25. Rh2 {[%clk 0:00:36]}  Rfd8 {[%clk 0:00:28]} 26. Bc2 {[%clk 0:00:30]}  h5 {[%clk 0:00:20]} 27. Qf4 {[%clk 0:00:22]}  Rd4 {[%clk 0:00:18]} 28. Qc7 {[%clk 0:00:21]}  Be4 {[%clk 0:00:14]} 29. Bxe4 {[%clk 0:00:18]}  Rxe4 {[%clk 0:00:05]} 30. Qc6 {[%clk 0:00:17]}  Re2 {[%clk 0:00:03]} 31. Qxa8+ {[%clk 0:00:08]}  Kh7 {[%clk 0:00:03]} 32. Qa3 {[%clk 0:00:09]}  f5 {[%clk 0:00:01]} 33. Qc3 {[%clk 0:00:09]}  Qd7 {[%clk 0:00:01]} 34. Rc1 {[%clk 0:00:08]}  Qc6 {[%clk 0:00:01]} 35. Rhh1 {[%clk 0:00:08]}  Qe4+ {[%clk 0:00:02]} 36. Ka1 {[%clk 0:00:08]}  Qxg2 {[%clk 0:00:02]} 37. Rhe1 {[%clk 0:00:09]}  Rxe1 {[%clk 0:00:02]} 38. Rxe1 {[%clk 0:00:10]}  Qf2 {[%clk 0:00:01]} 39. Qe5 {[%clk 0:00:10]}  h4 {[%clk 0:00:01]} 40. Qxe6 {[%clk 0:00:10]}  h3 {[%clk 0:00:02]} 41. Qe7+ {[%clk 0:00:09]}  Kh6 {[%clk 0:00:03]} 42. Qe3+ {[%clk 0:00:08]}  Qxe3 {[%clk 0:00:02]} 43. Rxe3 {[%clk 0:00:09]}  h2 {[%clk 0:00:02]} 44. Rh3+ {[%clk 0:00:10]}  Kg5 {[%clk 0:00:03]} 45. Rxh2 {[%clk 0:00:11]}  Kg4 {[%clk 0:00:04]} 46. Rg2+ {[%clk 0:00:10]}  Kh5 {[%clk 0:00:04]} 47. Kb1 {[%clk 0:00:09]}  f4 {[%clk 0:00:05]} 48. Kc2 {[%clk 0:00:10]}  g5 {[%clk 0:00:05]} 49. Kd3 {[%clk 0:00:10]}  f3 {[%clk 0:00:06]} 50. Rg3 {[%clk 0:00:08]}  g4 {[%clk 0:00:06]} 51. Ke3 {[%clk 0:00:08]}  Kh4 {[%clk 0:00:07]} 52. Kf2 {[%clk 0:00:09]}  Kg5 {[%clk 0:00:07]} 53. b4 {[%clk 0:00:10]}  Kf4 {[%clk 0:00:07]} 54. c5 {[%clk 0:00:10]}  bxc5 {[%clk 0:00:08]} 55. bxc5 {[%clk 0:00:11]}  Ke5 {[%clk 0:00:09]} 56. c6 {[%clk 0:00:12]}  Kd6 {[%clk 0:00:09]} 57. Rxg4 {[%clk 0:00:12]}  Kxc6 {[%clk 0:00:10]} 58. Kxf3 {[%clk 0:00:13]}  Kb5 {[%clk 0:00:10]} 59. a4+ {[%clk 0:00:13]}  Ka5 {[%clk 0:00:11]} 60. Ke3 {[%clk 0:00:13]}  Ka6 {[%clk 0:00:12]} 61. Kd3 {[%clk 0:00:14]}  Kb6 {[%clk 0:00:13]} 62. Kc3 {[%clk 0:00:15]}  Ka6 {[%clk 0:00:14]} 63. Kb4 {[%clk 0:00:16]}  Kb6 {[%clk 0:00:15]} 64. Rg6+ {[%clk 0:00:17]}  Kb7 {[%clk 0:00:15]} 65. a5 {[%clk 0:00:18]}  Ka7 {[%clk 0:00:16]} 66. Kb5 {[%clk 0:00:18]}  Kb7 {[%clk 0:00:17]} 67. a6+ {[%clk 0:00:19]}  Kb8 {[%clk 0:00:18]} 68. Rg7 {[%clk 0:00:19]}  Ka8 {[%clk 0:00:17]} 69. Kb6 {[%clk 0:00:20]}  Kb8 {[%clk 0:00:17]} 70. Rg8# {[%clk 0:00:21]} 1-0


[Site "https://www.chess.com"]

[Event "Titled Tuesday Blitz August 22 Early 2023"]
[White "CrazyAdvenTures"]
[Black "Sai Han Thiha"]
[BlackFideId "13012290"]
[WhiteElo "2615"]
[BlackElo "2450"]
[Result "1-0"]
[Round "3"]
[TimeControl "180+1"]
[Date "2023.08.22"]
[WhiteClock "0:00:28"]
[BlackClock "0:00:06"]
[Board "117"]

1. e4 {[%clk 0:03:00]}  c6 {[%clk 0:02:57]} 2. Nf3 {[%clk 0:02:56]}  d5 {[%clk 0:02:58]} 3. Nc3 {[%clk 0:02:57]}  Bg4 {[%clk 0:02:59]} 4. h3 {[%clk 0:02:56]}  Bxf3 {[%clk 0:02:59]} 5. Qxf3 {[%clk 0:02:57]}  e6 {[%clk 0:03:00]} 6. d4 {[%clk 0:02:49]}  Nf6 {[%clk 0:02:57]} 7. exd5 {[%clk 0:02:48]}  cxd5 {[%clk 0:02:56]} 8. Bd3 {[%clk 0:02:49]}  Nc6 {[%clk 0:02:45]} 9. Ne2 {[%clk 0:02:49]}  Be7 {[%clk 0:02:45]} 10. c3 {[%clk 0:02:45]}  O-O {[%clk 0:02:44]} 11. O-O {[%clk 0:02:06]}  a6 {[%clk 0:02:43]} 12. g4 {[%clk 0:01:54]}  b5 {[%clk 0:02:42]} 13. g5 {[%clk 0:01:53]}  Ne8 {[%clk 0:02:31]} 14. h4 {[%clk 0:01:51]}  Nd6 {[%clk 0:02:25]} 15. Nf4 {[%clk 0:01:44]}  g6 {[%clk 0:02:07]} 16. Kg2 {[%clk 0:01:39]}  b4 {[%clk 0:01:46]} 17. Rh1 {[%clk 0:01:24]}  bxc3 {[%clk 0:01:41]} 18. bxc3 {[%clk 0:01:25]}  Ne4 {[%clk 0:01:34]} 19. Bxe4 {[%clk 0:01:20]}  dxe4 {[%clk 0:01:35]} 20. Qxe4 {[%clk 0:01:21]}  Rc8 {[%clk 0:01:34]} 21. h5 {[%clk 0:01:12]}  Bxg5 {[%clk 0:01:30]} 22. hxg6 {[%clk 0:01:09]}  hxg6 {[%clk 0:00:45]} 23. Nxe6 {[%clk 0:01:03]}  Re8 {[%clk 0:00:44]} 24. Bxg5 {[%clk 0:00:53]}  Rxe6 {[%clk 0:00:44]} 25. Qh4 {[%clk 0:00:46]}  Qd5+ {[%clk 0:00:33]} 26. Kg1 {[%clk 0:00:45]}  Qxh1+ {[%clk 0:00:21]} 27. Qxh1 {[%clk 0:00:43]}  Na5 {[%clk 0:00:12]} 28. Qf3 {[%clk 0:00:36]}  Nc4 {[%clk 0:00:11]} 29. Kg2 {[%clk 0:00:36]}  f6 {[%clk 0:00:09]} 30. Qd5 {[%clk 0:00:33]}  Re8 {[%clk 0:00:07]} 31. Re1 {[%clk 0:00:31]}  Kf7 {[%clk 0:00:06]} 32. Rxe6 {[%clk 0:00:31]}  Rxe6 {[%clk 0:00:07]} 33. Qxc4 {[%clk 0:00:30]}  fxg5 {[%clk 0:00:07]} 34. Kf3 {[%clk 0:00:30]}  Ke7 {[%clk 0:00:06]} 35. Qc5+ {[%clk 0:00:29]}  Kf6 {[%clk 0:00:06]} 36. Qf8# {[%clk 0:00:28]} 1-0


[Site "https://www.chess.com"]

[Event "Titled Tuesday Blitz August 22 Early 2023"]
[White "WindWhistler11"]
[Black "Kvaloy, Aksel Bu"]
[BlackFideId "1528815"]
[WhiteElo "2443"]
[BlackElo "2612"]
[Result "1-0"]
[Round "3"]
[TimeControl "180+1"]
[Date "2023.08.22"]
[WhiteClock "0:00:07"]
[BlackClock "0:00:13"]
[Board "118"]

1. Nf3 {[%clk 0:03:00]}  Nf6 {[%clk 0:02:57]} 2. c4 {[%clk 0:03:00]}  g6 {[%clk 0:02:54]} 3. e3 {[%clk 0:02:54]}  Bg7 {[%clk 0:02:50]} 4. d4 {[%clk 0:02:53]}  O-O {[%clk 0:02:49]} 5. Be2 {[%clk 0:02:54]}  d5 {[%clk 0:02:49]} 6. O-O {[%clk 0:02:54]}  c6 {[%clk 0:02:47]} 7. b3 {[%clk 0:02:53]}  Bg4 {[%clk 0:02:45]} 8. Nbd2 {[%clk 0:02:49]}  e6 {[%clk 0:02:43]} 9. Ba3 {[%clk 0:02:47]}  Re8 {[%clk 0:02:41]} 10. Ne5 {[%clk 0:02:45]}  Bxe2 {[%clk 0:02:40]} 11. Qxe2 {[%clk 0:02:45]}  Nbd7 {[%clk 0:02:40]} 12. Nd3 {[%clk 0:02:45]}  a6 {[%clk 0:02:38]} 13. Bd6 {[%clk 0:02:40]}  Nb6 {[%clk 0:02:30]} 14. c5 {[%clk 0:02:36]}  Nc8 {[%clk 0:02:31]} 15. Be5 {[%clk 0:02:36]}  Nd7 {[%clk 0:02:30]} 16. Bxg7 {[%clk 0:02:35]}  Kxg7 {[%clk 0:02:31]} 17. f4 {[%clk 0:02:33]}  f5 {[%clk 0:02:26]} 18. Nf3 {[%clk 0:02:25]}  Ne7 {[%clk 0:02:25]} 19. Qf2 {[%clk 0:02:19]}  Ng8 {[%clk 0:02:25]} 20. Ng5 {[%clk 0:02:17]}  h6 {[%clk 0:02:24]} 21. Nf3 {[%clk 0:02:17]}  Ngf6 {[%clk 0:02:23]} 22. Kh1 {[%clk 0:02:13]}  Ne4 {[%clk 0:02:23]} 23. Qe1 {[%clk 0:02:13]}  g5 {[%clk 0:02:18]} 24. Nd2 {[%clk 0:01:57]}  Ndf6 {[%clk 0:02:16]} 25. Ne5 {[%clk 0:01:51]}  Nxd2 {[%clk 0:02:15]} 26. Qxd2 {[%clk 0:01:51]}  Ne4 {[%clk 0:02:16]} 27. Qe2 {[%clk 0:01:50]}  g4 {[%clk 0:02:13]} 28. g3 {[%clk 0:01:23]}  h5 {[%clk 0:02:10]} 29. Kg2 {[%clk 0:01:24]}  h4 {[%clk 0:02:08]} 30. Rh1 {[%clk 0:01:24]}  Rh8 {[%clk 0:02:04]} 31. b4 {[%clk 0:01:21]}  h3+ {[%clk 0:02:05]} 32. Kf1 {[%clk 0:01:20]}  a5 {[%clk 0:02:04]} 33. b5 {[%clk 0:01:20]}  cxb5 {[%clk 0:01:53]} 34. Qxb5 {[%clk 0:01:18]}  Qc7 {[%clk 0:01:54]} 35. Rc1 {[%clk 0:01:13]}  a4 {[%clk 0:01:50]} 36. Ke2 {[%clk 0:01:05]}  Ra5 {[%clk 0:01:50]} 37. Qb4 {[%clk 0:01:02]}  Rb8 {[%clk 0:01:44]} 38. Rb1 {[%clk 0:00:57]}  Ra6 {[%clk 0:01:42]} 39. Rhc1 {[%clk 0:00:53]}  Qd8 {[%clk 0:01:30]} 40. c6 {[%clk 0:00:51]}  Qd6 {[%clk 0:00:39]} 41. cxb7 {[%clk 0:00:31]}  Ra7 {[%clk 0:00:39]} 42. Qxd6 {[%clk 0:00:28]}  Nxd6 {[%clk 0:00:39]} 43. Rc7+ {[%clk 0:00:28]}  Kg8 {[%clk 0:00:38]} 44. Rd7 {[%clk 0:00:05]}  Raxb7 {[%clk 0:00:36]} 45. Rbxb7 {[%clk 0:00:05]}  Nxb7 {[%clk 0:00:36]} 46. Nc6 {[%clk 0:00:05]}  Nc5 {[%clk 0:00:15]} 47. Nxb8 {[%clk 0:00:04]}  Nxd7 {[%clk 0:00:15]} 48. Nxd7 {[%clk 0:00:05]}  Kf7 {[%clk 0:00:16]} 49. Kd3 {[%clk 0:00:04]}  Ke7 {[%clk 0:00:17]} 50. Ne5 {[%clk 0:00:05]}  a3 {[%clk 0:00:18]} 51. Kc3 {[%clk 0:00:05]}  Kd6 {[%clk 0:00:19]} 52. Kb4 {[%clk 0:00:06]}  Kc7 {[%clk 0:00:19]} 53. Kxa3 {[%clk 0:00:06]}  Kb6 {[%clk 0:00:13]} 54. Kb4 {[%clk 0:00:07]} 1-0


[Site "https://www.chess.com"]

[Event "Titled Tuesday Blitz August 22 Early 2023"]
[White "Issabayev, Dias"]
[Black "Kuzhilniy, Oleksandr"]
[WhiteFideId "13703110"]
[BlackFideId "34110500"]
[WhiteElo "2441"]
[BlackElo "2609"]
[Result "0-1"]
[Round "3"]
[TimeControl "180+1"]
[Date "2023.08.22"]
[WhiteClock "0:00:11"]
[BlackClock "0:00:16"]
[Board "119"]

1. e4 {[%clk 0:03:00]}  c6 {[%clk 0:02:54]} 2. d4 {[%clk 0:02:58]}  d5 {[%clk 0:02:54]} 3. Nc3 {[%clk 0:02:59]}  dxe4 {[%clk 0:02:52]} 4. Nxe4 {[%clk 0:02:59]}  Nf6 {[%clk 0:02:48]} 5. Nxf6+ {[%clk 0:02:58]}  exf6 {[%clk 0:02:49]} 6. Nf3 {[%clk 0:02:57]}  Bd6 {[%clk 0:02:49]} 7. Bd3 {[%clk 0:02:57]}  O-O {[%clk 0:02:49]} 8. O-O {[%clk 0:02:58]}  Bg4 {[%clk 0:02:50]} 9. h3 {[%clk 0:02:57]}  Bh5 {[%clk 0:02:50]} 10. Bf5 {[%clk 0:02:57]}  Nd7 {[%clk 0:02:47]} 11. Qd3 {[%clk 0:02:57]}  Bg6 {[%clk 0:02:47]} 12. Nh4 {[%clk 0:02:57]}  Re8 {[%clk 0:02:43]} 13. Bd2 {[%clk 0:02:57]}  Nf8 {[%clk 0:02:39]} 14. Rfe1 {[%clk 0:02:56]}  Qc7 {[%clk 0:02:34]} 15. c4 {[%clk 0:02:55]}  Bh5 {[%clk 0:02:29]} 16. d5 {[%clk 0:02:43]}  c5 {[%clk 0:02:26]} 17. Rxe8 {[%clk 0:02:19]}  Rxe8 {[%clk 0:02:25]} 18. Re1 {[%clk 0:02:20]}  Rxe1+ {[%clk 0:02:23]} 19. Bxe1 {[%clk 0:02:21]}  Qe7 {[%clk 0:02:22]} 20. Qe4 {[%clk 0:02:20]}  Be5 {[%clk 0:02:18]} 21. g4 {[%clk 0:02:13]}  Bg6 {[%clk 0:02:16]} 22. Bc3 {[%clk 0:02:12]}  Qd6 {[%clk 0:02:04]} 23. Bxe5 {[%clk 0:02:02]}  fxe5 {[%clk 0:02:05]} 24. Kg2 {[%clk 0:01:59]}  b6 {[%clk 0:01:58]} 25. Qe2 {[%clk 0:01:46]}  Qf6 {[%clk 0:01:51]} 26. Kg3 {[%clk 0:01:41]}  Bxf5 {[%clk 0:01:46]} 27. Nxf5 {[%clk 0:01:42]}  Ng6 {[%clk 0:01:39]} 28. d6 {[%clk 0:01:34]}  Nf8 {[%clk 0:01:31]} 29. Qe4 {[%clk 0:01:32]}  g6 {[%clk 0:01:27]} 30. Ne7+ {[%clk 0:01:25]}  Kg7 {[%clk 0:01:24]} 31. Qc6 {[%clk 0:01:11]}  e4 {[%clk 0:01:15]} 32. Nd5 {[%clk 0:01:01]}  Qf3+ {[%clk 0:01:14]} 33. Kh2 {[%clk 0:00:57]}  Qxf2+ {[%clk 0:01:15]} 34. Kh1 {[%clk 0:00:58]}  e3 {[%clk 0:01:01]} 35. Qe8 {[%clk 0:00:42]}  e2 {[%clk 0:00:30]} 36. Qe5+ {[%clk 0:00:39]}  f6 {[%clk 0:00:30]} 37. Qe7+ {[%clk 0:00:34]}  Kg8 {[%clk 0:00:30]} 38. Nxf6+ {[%clk 0:00:21]}  Qxf6 {[%clk 0:00:30]} 39. Qxf6 {[%clk 0:00:22]}  e1=Q+ {[%clk 0:00:30]} 40. Kg2 {[%clk 0:00:21]}  Qd2+ {[%clk 0:00:29]} 41. Kg3 {[%clk 0:00:20]}  Qe1+ {[%clk 0:00:27]} 42. Kg2 {[%clk 0:00:20]}  Qe6 {[%clk 0:00:27]} 43. Qe7 {[%clk 0:00:19]}  Qxc4 {[%clk 0:00:21]} 44. Kg3 {[%clk 0:00:19]}  Qd3+ {[%clk 0:00:17]} 45. Kh4 {[%clk 0:00:19]}  Qd5 {[%clk 0:00:16]} 46. Kg3 {[%clk 0:00:14]}  Qe6 {[%clk 0:00:14]} 47. Qd8 {[%clk 0:00:09]}  Kf7 {[%clk 0:00:13]} 48. Qc7+ {[%clk 0:00:05]}  Nd7 {[%clk 0:00:13]} 49. b3 {[%clk 0:00:03]}  g5 {[%clk 0:00:13]} 50. Kg2 {[%clk 0:00:03]}  Kf6 {[%clk 0:00:12]} 51. Qd8+ {[%clk 0:00:03]}  Ke5 {[%clk 0:00:13]} 52. Qxg5+ {[%clk 0:00:03]}  Kxd6 {[%clk 0:00:13]} 53. Qf4+ {[%clk 0:00:03]}  Ne5 {[%clk 0:00:12]} 54. Qd2+ {[%clk 0:00:02]}  Qd5+ {[%clk 0:00:13]} 55. Qxd5+ {[%clk 0:00:02]}  Kxd5 {[%clk 0:00:14]} 56. Kg3 {[%clk 0:00:02]}  Ke4 {[%clk 0:00:14]} 57. h4 {[%clk 0:00:03]}  b5 {[%clk 0:00:14]} 58. g5 {[%clk 0:00:02]}  c4 {[%clk 0:00:14]} 59. bxc4 {[%clk 0:00:03]}  bxc4 {[%clk 0:00:15]} 60. Kf2 {[%clk 0:00:04]}  Kd3 {[%clk 0:00:13]} 61. g6 {[%clk 0:00:05]}  Nxg6 {[%clk 0:00:13]} 62. h5 {[%clk 0:00:05]}  Nf4 {[%clk 0:00:13]} 63. h6 {[%clk 0:00:05]}  c3 {[%clk 0:00:14]} 64. Kf3 {[%clk 0:00:06]}  Ne6 {[%clk 0:00:14]} 65. a4 {[%clk 0:00:07]}  c2 {[%clk 0:00:14]} 66. Kg4 {[%clk 0:00:08]}  c1=Q {[%clk 0:00:14]} 67. a5 {[%clk 0:00:09]}  Qg5+ {[%clk 0:00:15]} 68. Kf3 {[%clk 0:00:09]}  Qf4+ {[%clk 0:00:15]} 69. Kg2 {[%clk 0:00:09]}  Ke2 {[%clk 0:00:15]} 70. a6 {[%clk 0:00:10]}  Qg4+ {[%clk 0:00:15]} 71. Kh2 {[%clk 0:00:10]}  Kf2 {[%clk 0:00:15]} 72. Kh1 {[%clk 0:00:11]}  Qg2# {[%clk 0:00:16]} 0-1


[Site "https://www.chess.com"]